fUSD/lending_fUSD_20240521
["ID","MTS","AMOUNT","RATE_DAILY","PERIOD"]
[327684026,1716315050435,-550.58,0.00030684,6]
[327684027,1716315050444,-500.0,0.00030684,6]
[327684028,1716315050453,-1324.46,0.00030684,6]
[327684029,1716315050462,-500.0,0.00030684,6]
[327684030,1716315050474,-189.18161282,0.00030684,6]
[327684031,1716315050484,-508.92,0.00030684,6]
[327684032,1716315050495,-500.0,0.00030684,6]
[327684033,1716315050505,-1127.04,0.00030684,6]
[327684034,1716315050514,-500.0,0.00030684,6]
[327684035,1716315050524,-500.0,0.00030684,6]
[327684036,1716315050533,-553.6,0.00030684,6]
[327684037,1716315050542,-500.0,0.00030684,6]
[327684038,1716315050552,-500.0,0.00030684,6]
[327684039,1716315050561,-508.69,0.00030684,6]
[327684040,1716315050570,-500.0,0.00030684,6]
[327684041,1716315050580,-500.0,0.00030684,6]
[327684042,1716315050591,-500.0,0.00030684,6]
[327684043,1716315050600,-854.72,0.00030684,6]
[327684044,1716315050610,-513.98,0.00030684,6]
[327684045,1716315050620,-500.0,0.00030684,6]
[327684046,1716315050630,-500.0,0.00030684,6]
[327684047,1716315050640,-500.0,0.00030684,6]
[327684048,1716315050649,-736.71,0.00030684,6]
[327684049,1716315050658,-500.0,0.00030684,6]
[327684050,1716315050668,-552.08,0.00030684,6]
[327684051,1716315050678,-500.0,0.00030684,6]
[327684052,1716315050689,-500.0,0.00030684,6]
[327684053,1716315050698,-793.61,0.00030684,6]
[327684054,1716315050707,-500.0,0.00030684,6]
[327684055,1716315050716,-500.0,0.00030684,6]
[327684056,1716315050726,-513.06,0.00030684,6]
[327684057,1716315050736,-907.61,0.00030684,6]
[327684058,1716315050745,-573.4,0.00030684,6]
[327684059,1716315050755,-963.1,0.00030684,6]
[327684060,1716315050765,-500.0,0.00030684,6]
[327684061,1716315050774,-725.45,0.00030684,6]
[327684062,1716315050783,-155.16,0.00030684,6]
[327684063,1716315050794,-500.0,0.00030684,6]
[327684064,1716315050803,-500.0,0.00030684,6]
[327684065,1716315050812,-500.0,0.00030684,6]
[327684066,1716315050822,-636.84,0.00030684,6]
[327684067,1716315050832,-1554.02,0.00030684,6]
[327684068,1716315050841,-500.0,0.00030684,6]
[327684069,1716315050851,-561.59,0.00030684,6]
[327684070,1716315050860,-500.0,0.00030684,6]
[327684071,1716315050870,-506.94,0.00030684,6]
[327684072,1716315050879,-1320.38,0.00030684,6]
[327684073,1716315050889,-287.55268937,0.00030684,6]
[327684074,1716315050899,-500.0,0.00030684,6]
[327684075,1716315050909,-540.72,0.00030684,6]
[327684076,1716315050919,-500.0,0.00030684,6]
[327684077,1716315050928,-548.73,0.00030684,6]
[327684078,1716315050940,-1068.62,0.00030684,6]
[327684079,1716315050949,-521.67,0.00030684,6]
[327684080,1716315050959,-603.82,0.00030684,6]
[327684081,1716315050968,-500.0,0.00030684,6]
[327684082,1716315050978,-1280.32,0.00030684,6]
[327684083,1716315050987,-500.0,0.00030684,6]
[327684084,1716315050997,-607.84,0.00030684,6]
[327684085,1716315051007,-547.54,0.00030684,6]
[327684086,1716315051017,-580.61,0.00030684,6]
[327684087,1716315051027,-763.1,0.00030684,6]
[327684088,1716315051038,-500.0,0.00030684,6]
[327684089,1716315051048,-500.0,0.00030684,6]
[327684090,1716315051058,-572.3,0.00030684,6]
[327684091,1716315051069,-732.1,0.00030684,6]
[327684092,1716315051079,-500.0,0.00030684,6]
[327684093,1716315051089,-842.07,0.00030684,6]
[327684094,1716315051100,-536.46,0.00030684,6]
[327684095,1716315051110,-814.64,0.00030684,6]
[327684096,1716315051119,-500.0,0.00030684,6]
[327684097,1716315051129,-500.0,0.00030684,6]
[327684098,1716315051138,-500.0,0.00030684,6]
[327684099,1716315051148,-506.08,0.00030684,6]
[327684100,1716315051158,-500.0,0.00030684,6]
[327684101,1716315051167,-866.48,0.00030684,6]
[327684102,1716315051177,-617.97,0.00030684,6]
[327684103,1716315051187,-500.0,0.00030684,6]
[327684104,1716315051196,-581.56,0.00030684,6]
[327684105,1716315051206,-500.0,0.00030684,6]
[327684106,1716315051215,-500.0,0.00030684,6]
[327684107,1716315051224,-1079.5,0.00030684,6]
[327684108,1716315051234,-500.0,0.00030684,6]
[327684109,1716315051243,-626.88,0.00030684,6]
[327684110,1716315051253,-500.0,0.00030684,6]
[327684111,1716315051263,-500.0,0.00030684,6]
[327684112,1716315051273,-500.0,0.00030684,6]
[327684113,1716315051283,-500.0,0.00030684,6]
[327684114,1716315051293,-500.0,0.00030684,6]
[327684115,1716315051302,-1512.56,0.00030684,6]
[327684116,1716315051312,-816.65,0.00030684,6]
[327684117,1716315051322,-965.24,0.00030684,6]
[327684118,1716315051332,-385.37,0.00030684,6]
[327684119,1716315051341,-500.0,0.00030684,6]
[327684120,1716315051351,-500.0,0.00030684,6]
[327684121,1716315051360,-552.93,0.00030684,6]
[327684122,1716315051370,-500.0,0.00030684,6]
[327684123,1716315051380,-991.71,0.00030684,6]
[327684124,1716315051391,-500.0,0.00030684,6]
[327684125,1716315051402,-678.27,0.00030684,6]
[327684126,1716315051411,-555.5,0.00030684,6]
[327684127,1716315051422,-500.0,0.00030684,6]
[327684128,1716315051433,-151.0,0.00030684,7]
[327684129,1716315051442,-500.0,0.00030684,6]
[327684130,1716315051451,-500.0,0.00030684,6]
[327684131,1716315051460,-151.0,0.00030684,7]
[327684132,1716315051474,-151.0,0.00030684,7]
[327684133,1716315051485,-500.0,0.00030684,6]
[327684134,1716315051494,-500.0,0.00030684,6]
[327684135,1716315051504,-500.0,0.00030684,6]
[327684136,1716315051515,-573.9,0.00030684,6]
[327684137,1716315051524,-536.44,0.00030684,6]
[327684138,1716315051535,-500.0,0.00030684,6]
[327684139,1716315051545,-870.73,0.00030684,6]
[327684140,1716315051555,-500.0,0.00030684,6]
[327684141,1716315051565,-500.0,0.00030684,6]
[327684142,1716315051575,-500.0,0.00030684,6]
[327684143,1716315051584,-500.0,0.00030684,6]
[327684144,1716315051594,-704.83,0.00030684,6]
[327684145,1716315051603,-769.91,0.00030684,6]
[327684146,1716315051613,-601.39,0.00030684,6]
[327684147,1716315051622,-500.0,0.00030684,6]
[327684148,1716315051632,-981.71,0.00030684,6]
[327684149,1716315051642,-500.0,0.00030684,6]
[327684150,1716315051652,-516.05,0.00030684,6]
[327684151,1716315051663,-500.0,0.00030684,6]
[327684152,1716315051673,-500.0,0.00030684,6]
[327684153,1716315051683,-500.0,0.00030684,6]
[327684154,1716315051693,-927.52,0.00030684,6]
[327684155,1716315051702,-500.0,0.00030684,6]
[327684156,1716315051712,-2918.87813659,0.00030684,4]
[327684157,1716315051722,-500.0,0.00030684,6]
[327684158,1716315051733,-1162.6,0.00030684,6]
[327684159,1716315051744,-561.66,0.00030684,6]
[327684160,1716315051756,-500.0,0.00030684,6]
[327684161,1716315051766,-500.0,0.00030684,6]
[327684162,1716315051775,-1229.26,0.00030684,6]
[327684163,1716315051785,-641.34,0.00030684,6]
[327684164,1716315051795,-1111.59,0.00030684,6]
[327684165,1716315051806,-500.0,0.00030684,6]
[327684166,1716315051815,-500.0,0.00030684,6]
[327684167,1716315051826,-316.30875153,0.00030684,6]
[327684168,1716315051835,-500.0,0.00030684,6]
[327684169,1716315051845,-500.0,0.00030684,6]
[327684170,1716315051855,-500.0,0.00030684,6]
[327684171,1716315051864,-500.0,0.00030684,6]
[327684172,1716315051874,-733.94,0.00030684,6]
[327684173,1716315051883,-1025.91,0.00030684,6]
[327684174,1716315051893,-500.0,0.00030684,6]
[327684175,1716315051902,-150.0,0.00030684,6]
[327684176,1716315051912,-746.96,0.00030684,6]
[327684177,1716315051922,-977.87,0.00030684,6]
[327684178,1716315051933,-500.0,0.00030684,6]
[327684179,1716315051942,-1511.83,0.00030684,6]
[327684180,1716315051951,-500.0,0.00030684,6]
[327684181,1716315051961,-808.61,0.00030684,6]
[327684182,1716315051971,-500.0,0.00030684,6]
[327684183,1716315051980,-554.92,0.00030684,6]
[327684184,1716315051992,-779.4,0.00030684,6]
[327684185,1716315052001,-500.0,0.00030684,6]
[327684186,1716315052011,-727.63,0.00030684,6]
[327684187,1716315052020,-391.9,0.00030684,6]
[327684188,1716315052030,-1408.95,0.00030684,6]
[327684189,1716315052040,-717.67,0.00030684,6]
[327684190,1716315052050,-553.07,0.00030684,6]
[327684191,1716315052059,-659.98,0.00030684,6]
[327684192,1716315052069,-151.0,0.00030684,7]
[327684193,1716315052079,-151.0,0.00030684,7]
[327684194,1716315052089,-1237.74,0.00030684,6]
[327684195,1716315052098,-151.0,0.00030684,7]
[327684196,1716315052275,-1027.38,0.00030684,6]
[327684197,1716315052284,-500.0,0.00030684,6]
[327684198,1716315052293,-500.0,0.00030684,6]
[327684199,1716315052303,-508.98304083,0.00030684,6]
[327684200,1716315052313,-3234.14,0.00030684,6]
[327684201,1716315052323,-500.0,0.00030684,6]
[327684202,1716315052332,-500.0,0.00030684,6]
[327684203,1716315052342,-500.0,0.00030684,6]
[327684204,1716315052352,-906.73,0.00030684,6]
[327684205,1716315052361,-850.34,0.00030684,6]
[327684206,1716315052371,-933.43,0.00030684,6]
[327684207,1716315052383,-500.0,0.00030684,6]
[327684208,1716315052396,-500.0,0.00030684,6]
[327684209,1716315052406,-500.0,0.00030684,6]
[327684210,1716315052415,-500.0,0.00030684,6]
[327684211,1716315052424,-844.41,0.00030684,6]
[327684212,1716315052435,-500.0,0.00030684,6]
[327684213,1716315052444,-1059.25,0.00030684,6]
[327684214,1716315052453,-500.0,0.00030684,6]
[327684215,1716315052463,-535.7,0.00030684,6]
[327684216,1716315052475,-197.84239,0.00030684,7]
[327684217,1716315052486,-197.84239,0.00030684,7]
[327684218,1716315052495,-898.74,0.00030684,6]
[327684219,1716315052504,-197.84239,0.00030684,7]
[327684220,1716315052514,-500.0,0.00030684,6]
[327684221,1716315052523,-613.62702902,0.00030684,6]
[327684222,1716315052533,-500.0,0.00030684,6]
[327684223,1716315052543,-4599.8,0.00030684,6]
[327684224,1716315052552,-197.84239,0.00030684,7]
[327684225,1716315052562,-197.84239,0.00030684,7]
[327684226,1716315052572,-500.0,0.00030684,6]
[327684227,1716315052581,-500.0,0.00030684,6]
[327684228,1716315052590,-197.84239,0.00030684,7]
[327684229,1716315052600,-500.0,0.00030684,6]
[327684230,1716315052609,-500.0,0.00030684,6]
[327684231,1716315052619,-1904.67,0.00030684,6]
[327684232,1716315052628,-956.24,0.00030684,6]
[327684233,1716315052638,-488.0,0.00030684,6]
[327684234,1716315052648,-531.51047244,0.00030684,6]
[327684235,1716315052657,-500.0,0.00030684,6]
[327684236,1716315052667,-736.93,0.00030684,6]
[327684237,1716315052676,-655.49,0.00030684,6]
[327684238,1716315052687,-500.0,0.00030684,6]
[327684239,1716315052697,-500.0,0.00030684,6]
[327684240,1716315052706,-500.0,0.00030684,6]
[327684241,1716315052716,-500.0,0.00030684,6]
[327684242,1716315052726,-500.0,0.00030684,6]
[327684243,1716315052736,-500.0,0.00030684,6]
[327684244,1716315052746,-608.57,0.00030684,6]
[327684245,1716315052755,-500.0,0.00030684,6]
[327684246,1716315052764,-500.0,0.00030684,6]
[327684247,1716315052773,-500.0,0.00030684,6]
[327684248,1716315052783,-49185.62,0.00030684,6]
[327684249,1716315052792,-792.08,0.00030684,6]
[327684250,1716315052801,-500.0,0.00030684,6]
[327684251,1716315052810,-500.0,0.00030684,6]
[327684252,1716315052819,-581.25,0.00030684,6]
[327684253,1716315052829,-1739.13,0.00030684,6]
[327684254,1716315052839,-500.0,0.00030684,6]
[327684255,1716315052848,-500.0,0.00030684,6]
[327684256,1716315052857,-508.35910216,0.00030684,6]
[327684257,1716315052867,-830.93,0.00030684,6]
[327684258,1716315052876,-585.69,0.00030684,6]
[327684259,1716315052886,-827.48,0.00030684,6]
[327684260,1716315052895,-1907.88,0.00030684,6]
[327684261,1716315052904,-500.0,0.00030684,6]
[327684262,1716315052914,-500.0,0.00030684,6]
[327684263,1716315052923,-1292.25,0.00030684,6]
[327684264,1716315052932,-904.54,0.00030684,6]
[327684265,1716315052942,-596.78,0.00030684,6]
[327684266,1716315052951,-500.0,0.00030684,6]
[327684267,1716315052960,-5555.31,0.00030684,6]
[327684268,1716315052969,-1056.23,0.00030684,6]
[327684269,1716315052978,-3017.85,0.00030684,6]
[327684270,1716315052988,-2475.38,0.00030684,6]
[327684271,1716315052998,-500.0,0.00030684,6]
[327684272,1716315053008,-500.0,0.00030684,6]
[327684273,1716315053017,-500.0,0.00030684,6]
[327684274,1716315053027,-500.0,0.00030684,6]
[327684275,1716315053036,-500.0,0.00030684,6]
[327684276,1716315053046,-196.16138394,0.00030684,2]
[327684277,1716315053057,-1331.51,0.00030684,6]
[327684278,1716315053067,-3001.33,0.00030684,6]
[327684279,1716315053076,-500.0,0.00030684,6]
[327684280,1716315053085,-13151.33,0.00030684,6]
[327684281,1716315053095,-1258.16,0.00030684,6]
[327684282,1716315053104,-759.58,0.00030684,6]
[327684283,1716315053113,-500.0,0.00030684,6]
[327684284,1716315053122,-500.0,0.00030684,6]
[327684285,1716315053131,-500.0,0.00030684,6]
[327684286,1716315053141,-818.22,0.00030684,6]
[327684287,1716315053150,-500.0,0.00030684,6]
[327684288,1716315053160,-935.61,0.00030684,6]
[327684289,1716315053169,-500.0,0.00030684,6]
[327684290,1716315053179,-7211.08,0.00030684,6]
[327684291,1716315053189,-1124.73,0.00030684,6]
[327684292,1716315053198,-4656.68,0.00030684,6]
[327684293,1716315053207,-4118.23,0.00030684,6]
[327684294,1716315053217,-500.0,0.00030684,6]
[327684295,1716315053227,-500.0,0.00030684,6]
[327684296,1716315053236,-755.93,0.00030684,6]
[327684297,1716315053245,-500.0,0.00030684,6]
[327684298,1716315053255,-1049.31,0.00030684,6]
[327684299,1716315053264,-500.0,0.00030684,6]
[327684300,1716315053273,-500.0,0.00030684,6]
[327684301,1716315053283,-2324.98,0.00030684,6]
[327684302,1716315053292,-500.0,0.00030684,6]
[327684303,1716315053301,-500.0,0.00030684,6]
[327684304,1716315053310,-1493.63,0.00030684,6]
[327684305,1716315053320,-500.0,0.00030684,6]
[327684306,1716315053329,-500.0,0.00030684,6]
[327684307,1716315053338,-500.0,0.00030684,6]
[327684308,1716315053348,-500.0,0.00030684,6]
[327684309,1716315053357,-500.0,0.00030684,6]
[327684310,1716315053366,-1287.62,0.00030684,6]
[327684311,1716315053376,-1574.32,0.00030684,6]
[327684312,1716315053388,-509.68246355,0.00030684,6]
[327684313,1716315053398,-500.0,0.00030684,6]
[327684314,1716315053407,-500.0,0.00030684,6]
[327684315,1716315053416,-1883.43,0.00030684,6]
[327684316,1716315053427,-2785.69,0.00030684,6]
[327684317,1716315053437,-500.0,0.00030684,2]
[327684318,1716315053446,-500.0,0.00030684,6]
[327684319,1716315053455,-1328.93,0.00030684,6]
[327684320,1716315053465,-500.0,0.00030684,6]
[327684321,1716315053475,-500.0,0.00030684,6]
[327684322,1716315053484,-500.0,0.00030684,6]
[327684323,1716315053494,-500.0,0.00030684,6]
[327684324,1716315053503,-500.0,0.00030684,6]
[327684325,1716315053512,-1803.95,0.00030684,6]
[327684326,1716315053521,-1253.04,0.00030684,6]
[327684327,1716315053530,-624.25,0.00030684,6]
[327684328,1716315053540,-500.0,0.00030684,6]
[327684329,1716315053549,-1152.26,0.00030684,6]
[327684330,1716315053559,-684.0,0.00030684,6]
[327684331,1716315053568,-20341.04,0.00030684,6]
[327684332,1716315053578,-500.0,0.00030684,6]
[327684333,1716315053587,-500.0,0.00030684,6]
[327684334,1716315053596,-2757.01,0.00030684,6]
[327684335,1716315053606,-500.0,0.00030684,6]
[327684336,1716315053615,-500.0,0.00030684,6]
[327684337,1716315053624,-500.0,0.00030684,6]
[327684338,1716315053634,-500.0,0.00030684,6]
[327684339,1716315053643,-375.94,0.00030684,6]
[327684340,1716315053652,-500.0,0.00030684,6]
[327684341,1716315053662,-1992.2,0.00030684,6]
[327684342,1716315053671,-500.0,0.00030684,6]
[327684343,1716315053681,-2640.86,0.00030684,6]
[327684344,1716315053691,-594.3,0.00030684,6]
[327684345,1716315053700,-500.0,0.00030684,6]
[327684346,1716315053710,-522.47,0.00030684,6]
[327684347,1716315053719,-500.0,0.00030684,6]
[327684348,1716315053728,-508.54232651,0.00030684,6]
[327684349,1716315053738,-1584.9,0.00030684,6]
[327684350,1716315053747,-629.62,0.00030684,6]
[327684351,1716315053757,-4525.96,0.00030684,6]
[327684352,1716315053766,-500.0,0.00030684,6]
[327684353,1716315053776,-1943.52,0.00030684,6]
[327684354,1716315053785,-1240.99,0.00030684,6]
[327684355,1716315053796,-500.0,0.00030684,6]
[327684356,1716315053805,-703.99,0.00030684,6]
[327684357,1716315053814,-580.41,0.00030684,6]
[327684358,1716315053823,-1019.98,0.00030684,6]
[327684359,1716315053832,-500.0,0.00030684,6]
[327684360,1716315053842,-500.0,0.00030684,6]
[327684361,1716315053851,-500.0,0.00030684,6]
[327684362,1716315053860,-560.05,0.00030684,6]
[327684363,1716315053870,-500.0,0.00030684,6]
[327684364,1716315053879,-500.0,0.00030684,6]
[327684365,1716315053889,-500.0,0.00030684,6]
[327684366,1716315053898,-500.0,0.00030684,6]
[327684367,1716315053909,-650.65,0.00030684,6]
[327684368,1716315053920,-500.0,0.00030684,6]
[327684369,1716315053930,-500.0,0.00030684,6]
[327684370,1716315053940,-8526.28,0.00030684,6]
[327684371,1716315053949,-500.0,0.00030684,6]
[327684372,1716315053958,-500.0,0.00030684,6]
[327684373,1716315053967,-500.0,0.00030684,6]
[327684374,1716315053976,-500.0,0.00030684,6]
[327684375,1716315053986,-500.0,0.00030684,6]
[327684376,1716315053995,-531.29,0.00030684,6]
[327684377,1716315054004,-500.0,0.00030684,6]
[327684378,1716315054013,-500.0,0.00030684,6]
[327684379,1716315054023,-509.94,0.00030684,6]
[327684380,1716315054033,-1528.03,0.00030684,6]
[327684381,1716315054042,-742.81,0.00030684,6]
[327684382,1716315054051,-525.51,0.00030684,6]
[327684383,1716315054060,-36632.56,0.00030684,6]
[327684384,1716315054069,-1094.71,0.00030684,6]
[327684385,1716315054079,-1093.31,0.00030684,6]
[327684386,1716315054089,-500.0,0.00030684,6]
[327684387,1716315054098,-322.807346,0.00030684,7]
[327684388,1716315054107,-322.807346,0.00030684,7]
[327684389,1716315054117,-500.0,0.00030684,6]
[327684390,1716315054126,-1096.07,0.00030684,6]
[327684391,1716315054135,-322.807346,0.00030684,7]
[327684392,1716315054144,-500.0,0.00030684,6]
[327684393,1716315054153,-525.01,0.00030684,6]
[327684394,1716315054162,-1728.51,0.00030684,6]
[327684395,1716315054171,-5714.4,0.00030684,6]
[327684396,1716315054180,-500.0,0.00030684,6]
[327684397,1716315054190,-322.807346,0.00030684,7]
[327684398,1716315054199,-500.0,0.00030684,6]
[327684399,1716315054208,-500.0,0.00030684,6]
[327684400,1716315054217,-322.807346,0.00030684,7]
[327684401,1716315054226,-500.0,0.00030684,6]
[327684402,1716315054235,-322.807346,0.00030684,7]
[327684403,1716315054244,-508.13627697,0.00030684,6]
[327684404,1716315054253,-500.0,0.00030684,6]
[327684405,1716315054262,-1188.81,0.00030684,6]
[327684406,1716315054271,-532.0955447,0.00030684,6]
[327684407,1716315054280,-834.15,0.00030684,6]
[327684408,1716315054289,-500.0,0.00030684,6]
[327684409,1716315054299,-500.0,0.00030684,6]
[327684410,1716315054308,-1435.99,0.00030684,6]
[327684411,1716315054317,-1461.48,0.00030684,6]
[327684412,1716315054326,-9206.48,0.00030684,6]
[327684413,1716315054335,-1029.0,0.00030684,6]
[327684414,1716315054344,-665.91,0.00030684,6]
[327684415,1716315054353,-1424.0,0.00030684,6]
[327684416,1716315054362,-500.0,0.00030684,6]
[327684417,1716315054370,-500.0,0.00030684,6]
[327684418,1716315054380,-500.0,0.00030684,6]
[327684419,1716315054390,-828.27,0.00030684,6]
[327684420,1716315054403,-392.24344304,0.00030684,6]
[327684421,1716315055055,-500.0,0.0003041,6]
[327684422,1716315055064,-107.75655696,0.00030684,6]
[327684423,1716315055073,-582.34918545,0.00030684,6]
[327684424,1716315055084,-468.83263369,0.00030684,6]
[327684425,1716315063125,-971.05818086,0.00030684,6]
[327684426,1716315063135,-634.37,0.00030684,6]
[327684427,1716315063145,-2670.64,0.00030684,6]
[327684428,1716315063154,-1437.11,0.00030684,6]
[327684429,1716315063164,-1377.19,0.00030684,6]
[327684430,1716315063173,-1577.57,0.00030684,6]
[327684431,1716315063183,-664.35,0.00030684,6]
[327684432,1716315063194,-500.0,0.00030684,6]
[327684433,1716315063203,-1105.82,0.00030684,6]
[327684434,1716315063212,-1011.45,0.00030684,6]
[327684435,1716315063221,-1701.42,0.00030684,6]
[327684436,1716315063230,-1648.12,0.00030684,6]
[327684437,1716315063239,-508.36790088,0.00030684,6]
[327684438,1716315063248,-6712.14,0.00030684,6]
[327684439,1716315063257,-500.0,0.00030684,6]
[327684440,1716315063266,-848.69,0.00030684,6]
[327684441,1716315063275,-500.0,0.00030684,6]
[327684442,1716315063284,-691.32,0.00030684,6]
[327684443,1716315063294,-500.0,0.00030684,6]
[327684444,1716315063303,-500.0,0.00030684,6]
[327684445,1716315063312,-1109.13,0.00030684,6]
[327684446,1716315063321,-500.0,0.00030684,6]
[327684447,1716315063331,-2978.57,0.00030684,6]
[327684448,1716315063349,-500.0,0.00030684,6]
[327684449,1716315063361,-500.0,0.00030684,6]
[327684450,1716315063371,-500.0,0.00030684,6]
[327684451,1716315063382,-3748.68,0.00030684,6]
[327684452,1716315063393,-500.0,0.00030684,6]
[327684453,1716315063408,-500.0,0.00030684,6]
[327684454,1716315063419,-500.0,0.00030684,6]
[327684455,1716315063428,-500.0,0.00030684,6]
[327684456,1716315063442,-500.0,0.00030684,6]
[327684457,1716315063452,-3045.56,0.00030684,6]
[327684458,1716315063462,-500.0,0.00030684,6]
[327684459,1716315063473,-382.34,0.00030684,6]
[327684460,1716315063484,-1311.05,0.00030684,6]
[327684461,1716315063495,-718.03,0.00030684,6]
[327684462,1716315063505,-500.0,0.00030684,6]
[327684463,1716315063515,-500.0,0.00030684,6]
[327684464,1716315063525,-500.0,0.00030684,6]
[327684465,1716315063535,-151.0,0.00030684,7]
[327684466,1716315063545,-694.92,0.00030684,6]
[327684467,1716315063555,-151.0,0.00030684,7]
[327684468,1716315063565,-151.0,0.00030684,7]
[327684469,1716315063575,-500.0,0.00030684,6]
[327684470,1716315063585,-500.0,0.00030684,6]
[327684471,1716315063595,-2760.74,0.00030684,6]
[327684472,1716315063605,-187.36,0.00030684,6]
[327684473,1716315063615,-500.0,0.00030684,6]
[327684474,1716315063625,-2847.07,0.00030684,6]
[327684475,1716315063635,-500.0,0.00030684,6]
[327684476,1716315063645,-2947.24,0.00030684,6]
[327684477,1716315063655,-500.0,0.00030684,6]
[327684478,1716315063664,-500.0,0.00030684,6]
[327684479,1716315063674,-500.0,0.00030684,6]
[327684480,1716315063686,-733.97,0.00030684,6]
[327684481,1716315063699,-511.63331304,0.00030684,6]
[327684482,1716315063709,-500.0,0.00030684,6]
[327684483,1716315063719,-18843.36,0.00030684,6]
[327684484,1716315063728,-6002.45,0.00030684,6]
[327684485,1716315063739,-538.2,0.00030684,6]
[327684486,1716315063749,-500.0,0.00030684,6]
[327684487,1716315063759,-500.0,0.00030684,6]
[327684488,1716315063769,-2479.2,0.00030684,6]
[327684489,1716315063780,-500.0,0.00030684,6]
[327684490,1716315063791,-1080.05,0.00030684,6]
[327684491,1716315063801,-717.01,0.00030684,6]
[327684492,1716315063811,-500.0,0.00030684,6]
[327684493,1716315063821,-500.0,0.00030684,6]
[327684494,1716315063832,-500.0,0.00030684,6]
[327684495,1716315063842,-1743.19,0.00030684,6]
[327684496,1716315063853,-1869.29,0.00030684,6]
[327684497,1716315063863,-500.0,0.00030684,6]
[327684498,1716315063874,-19266.86,0.00030684,6]
[327684499,1716315063884,-500.0,0.00030684,6]
[327684500,1716315063895,-500.0,0.00030684,6]
[327684501,1716315063904,-717.11,0.00030684,6]
[327684502,1716315063914,-752.29,0.00030684,6]
[327684503,1716315063924,-3154.93,0.00030684,6]
[327684504,1716315063934,-500.0,0.00030684,6]
[327684505,1716315063947,-500.0,0.00030684,6]
[327684506,1716315063957,-3389.38,0.00030684,6]
[327684507,1716315063967,-1952.68,0.00030684,6]
[327684508,1716315063977,-500.0,0.00030684,6]
[327684509,1716315063988,-500.0,0.00030684,6]
[327684510,1716315063998,-500.0,0.00030684,6]
[327684511,1716315064008,-3123.41,0.00030684,6]
[327684512,1716315064019,-1493.22,0.00030684,6]
[327684513,1716315064028,-151.0,0.00030684,7]
[327684514,1716315064039,-500.0,0.00030684,6]
[327684515,1716315064050,-151.0,0.00030684,7]
[327684516,1716315064061,-151.0,0.00030684,7]
[327684517,1716315064070,-500.0,0.00030684,6]
[327684518,1716315064080,-809.31,0.00030684,6]
[327684519,1716315064090,-2003.05,0.00030684,6]
[327684520,1716315064100,-634.91,0.00030684,6]
[327684521,1716315064110,-1184.99,0.00030684,6]
[327684522,1716315064120,-500.0,0.00030684,6]
[327684523,1716315064130,-903.98,0.00030684,6]
[327684524,1716315064139,-1072.41,0.00030684,6]
[327684525,1716315064149,-1804.49,0.00030684,6]